fUSD/lending_fUSD_20240215
["ID","MTS","AMOUNT","RATE_DAILY","PERIOD"]
[314125602,1708008655177,-500.0,0.00039452,7]
[314125603,1708008655189,-243.391961,0.00039452,7]
[314125604,1708008655202,-500.0,0.00039452,7]
[314125605,1708008655211,-654.84,0.00039452,7]
[314125606,1708008655221,-500.0,0.00039452,7]
[314125607,1708008655233,-243.391961,0.00039452,7]
[314125608,1708008655361,-500.0,0.00039452,7]
[314125609,1708008655373,-500.0,0.00039452,7]
[314125610,1708008655382,-1032.26,0.00039452,7]
[314125611,1708008655392,-500.0,0.00039452,7]
[314125612,1708008655401,-500.0,0.00039452,7]
[314125613,1708008655411,-1764.36,0.00039452,7]
[314125614,1708008655420,-1172.12,0.00039452,7]
[314125615,1708008655429,-500.0,0.00039452,7]
[314125616,1708008655439,-574.70983922,0.00039452,7]
[314125617,1708008655450,-515.24072974,0.00039452,7]
[314125618,1708008655459,-295.07208168,0.00039452,7]
[314125619,1708008655470,-500.0,0.00039452,7]
[314125620,1708008655480,-500.0,0.00039452,7]
[314125621,1708008655489,-500.0,0.00039452,7]
[314125622,1708008655498,-500.0,0.00039452,7]
[314125623,1708008655508,-500.0,0.00039452,7]
[314125624,1708008655517,-500.0,0.00039452,7]
[314125625,1708008655527,-1763.06,0.00039452,7]
[314125626,1708008655536,-500.0,0.00039452,7]
[314125627,1708008655546,-500.0,0.00039452,7]
[314125628,1708008655557,-656.53,0.00039452,7]
[314125629,1708008655570,-725.96,0.00039452,7]
[314125630,1708008655580,-500.0,0.00039452,7]
[314125631,1708008655590,-500.0,0.00039452,7]
[314125632,1708008655600,-500.0,0.00039452,7]
[314125633,1708008655609,-1213.8,0.00039452,7]
[314125634,1708008655619,-500.0,0.00039452,7]
[314125635,1708008655628,-500.0,0.00039452,7]
[314125636,1708008655638,-500.0,0.00039452,7]
[314125637,1708008655647,-500.0,0.00039452,7]
[314125638,1708008655657,-567.74,0.00039452,7]
[314125639,1708008655666,-500.0,0.00039452,7]
[314125640,1708008655675,-1924.35,0.00039452,7]
[314125641,1708008655686,-500.0,0.00039452,7]
[314125642,1708008655697,-500.0,0.00039452,7]
[314125643,1708008655707,-500.0,0.00039452,7]
[314125644,1708008655717,-500.0,0.00039452,7]
[314125645,1708008655726,-500.0,0.00039452,7]
[314125646,1708008655736,-500.0,0.00039452,7]
[314125647,1708008655746,-554.45499327,0.00039452,7]
[314125648,1708008655756,-151.0,0.00039452,7]
[314125649,1708008655766,-500.0,0.00039452,7]
[314125650,1708008655775,-1973.42,0.00039452,7]
[314125651,1708008655785,-500.0,0.00039452,7]
[314125652,1708008655794,-500.0,0.00039452,7]
[314125653,1708008655804,-513.72664681,0.00039452,7]
[314125654,1708008655814,-151.0,0.00039452,7]
[314125655,1708008655823,-530.57866567,0.00039452,7]
[314125656,1708008655833,-500.0,0.00039452,7]
[314125657,1708008655842,-565.72,0.00039452,7]
[314125658,1708008655852,-500.0,0.00039452,7]
[314125659,1708008655861,-511.86,0.00039452,7]
[314125660,1708008655871,-500.0,0.00039452,7]
[314125661,1708008655884,-500.0,0.00039452,7]
[314125662,1708008655894,-533.79886002,0.00039452,7]
[314125663,1708008655903,-1949.22,0.00039452,7]
[314125664,1708008655913,-500.0,0.00039452,7]
[314125665,1708008655923,-1000.0,0.00039452,7]
[314125666,1708008655932,-540.24086002,0.00039452,7]
[314125667,1708008655942,-768.14,0.00039452,7]
[314125668,1708008655952,-526.90916506,0.00039452,7]
[314125669,1708008655962,-628.04,0.00039452,7]
[314125670,1708008655972,-1380.21,0.00039452,7]
[314125671,1708008655981,-500.0,0.00039452,7]
[314125672,1708008655991,-500.0,0.00039452,7]
[314125673,1708008656001,-522.44142082,0.00039452,7]
[314125674,1708008656011,-554.22230291,0.00039452,7]
[314125675,1708008656021,-500.0,0.00039452,7]
[314125676,1708008656031,-500.0,0.00039452,7]
[314125677,1708008656041,-500.0,0.00039452,7]
[314125678,1708008656051,-500.0,0.00039452,7]
[314125679,1708008656061,-500.0,0.00039452,7]
[314125680,1708008656070,-500.0,0.00039452,7]
[314125681,1708008656080,-500.0,0.00039452,7]
[314125682,1708008656090,-151.0,0.00039452,7]
[314125683,1708008656099,-500.0,0.00039452,7]
[314125684,1708008656109,-500.0,0.00039452,7]
[314125685,1708008656119,-500.0,0.00039452,7]
[314125686,1708008656128,-500.0,0.00039452,7]
[314125687,1708008656138,-250.0,0.00039452,5]
[314125688,1708008656148,-2834.69,0.00039452,7]
[314125689,1708008656157,-500.0,0.00039452,7]
[314125690,1708008656166,-500.0,0.00039452,7]
[314125691,1708008656175,-500.0,0.00039452,7]
[314125692,1708008656185,-500.0,0.00039452,7]
[314125693,1708008656195,-500.0,0.00039452,7]
[314125694,1708008656208,-500.0,0.00039452,7]
[314125695,1708008656217,-503.1739421,0.00039452,10]
[314125696,1708008656227,-500.0,0.00039452,7]
[314125697,1708008656237,-1284.4,0.00039452,7]
[314125698,1708008656247,-500.0,0.00039452,7]
[314125699,1708008656256,-500.0,0.00039452,7]
[314125700,1708008656266,-500.0,0.00039452,7]
[314125701,1708008656276,-539.89645641,0.00039452,7]
[314125702,1708008656288,-500.0,0.00039452,7]
[314125703,1708008656298,-500.0,0.00039452,7]
[314125704,1708008656308,-500.0,0.00039452,7]
[314125705,1708008656318,-1757.36,0.00039452,7]
[314125706,1708008656329,-648.31,0.00039452,7]
[314125707,1708008656339,-510.24692225,0.00039452,7]
[314125708,1708008656349,-500.0,0.00039452,7]
[314125709,1708008656360,-500.0,0.00039452,7]
[314125710,1708008656370,-209.36922202,0.00039452,7]
[314125711,1708008656379,-504.18536811,0.00039452,7]
[314125712,1708008656389,-500.0,0.00039452,5]
[314125713,1708008656398,-500.0,0.00039452,7]
[314125714,1708008656409,-500.0,0.00039452,7]
[314125715,1708008656418,-500.0,0.00039452,7]
[314125716,1708008656431,-500.0,0.00039452,7]
[314125717,1708008656441,-500.0,0.00039452,7]
[314125718,1708008656452,-500.0,0.00039452,7]
[314125719,1708008656462,-500.0,0.00039452,7]
[314125720,1708008656472,-500.0,0.00039452,7]
[314125721,1708008656481,-500.0,0.00039452,7]
[314125722,1708008656491,-151.0,0.00039452,7]
[314125723,1708008656501,-500.0,0.00039452,7]
[314125724,1708008656510,-4988.11,0.00039452,7]
[314125725,1708008656520,-500.0,0.00039452,7]
[314125726,1708008656530,-500.0,0.00039452,7]
[314125727,1708008656540,-4183.33,0.00039452,7]
[314125728,1708008656549,-500.0,0.00039452,7]
[314125729,1708008656559,-517.02994212,0.00039452,7]
[314125730,1708008656569,-500.0,0.00039452,7]
[314125731,1708008656579,-481.65017347,0.00039452,7]
[314125732,1708008656589,-500.0,0.00039452,7]
[314125733,1708008656598,-597.76,0.00039452,7]
[314125734,1708008656608,-500.0,0.00039452,7]
[314125735,1708008656618,-500.0,0.00039452,7]
[314125736,1708008656628,-517.26082949,0.00039452,7]
[314125737,1708008656637,-500.0,0.00039452,7]
[314125738,1708008656647,-500.0,0.00039452,7]
[314125739,1708008656656,-500.0,0.00039452,7]
[314125740,1708008656666,-504.35150619,0.00039452,7]
[314125741,1708008656675,-515.27477593,0.00039452,7]
[314125742,1708008656685,-500.0,0.00039452,7]
[314125743,1708008656695,-1508.49,0.00039452,7]
[314125744,1708008656704,-500.0,0.00039452,7]
[314125745,1708008656714,-500.0,0.00039452,7]
[314125746,1708008656724,-500.0,0.00039452,7]
[314125747,1708008656734,-505.4502826,0.00039452,7]
[314125748,1708008656744,-609.02,0.00039452,7]
[314125749,1708008656841,-500.0,0.00039452,7]
[314125750,1708008656850,-500.0,0.00039452,7]
[314125751,1708008656860,-500.0,0.00039452,7]
[314125752,1708008656869,-500.0,0.00039452,7]
[314125753,1708008656879,-500.0,0.00039452,7]
[314125754,1708008656888,-500.0,0.00039452,7]
[314125755,1708008656898,-500.0,0.00039452,7]
[314125756,1708008656907,-500.0,0.00039452,7]
[314125757,1708008656917,-500.0,0.00039452,7]
[314125758,1708008656927,-520.23213209,0.00039452,7]
[314125759,1708008656936,-500.0,0.00039452,7]
[314125760,1708008656947,-500.0,0.00039452,7]
[314125761,1708008656956,-537.9494555,0.00039452,7]
[314125762,1708008656966,-151.0,0.00039452,7]
[314125763,1708008656976,-500.0,0.00039452,7]
[314125764,1708008656986,-500.0,0.00039452,7]
[314125765,1708008656995,-500.0,0.00039452,7]
[314125766,1708008657005,-500.0,0.00039452,7]
[314125767,1708008657014,-558.68371816,0.00039452,7]
[314125768,1708008657024,-500.0,0.00039452,7]
[314125769,1708008657034,-500.0,0.00039452,7]
[314125770,1708008657043,-500.0,0.00039452,7]
[314125771,1708008657052,-511.62156044,0.00039452,7]
[314125772,1708008657062,-500.0,0.00039452,7]
[314125773,1708008657071,-500.0,0.00039452,7]
[314125774,1708008657081,-500.0,0.00039452,7]
[314125775,1708008657090,-500.0,0.00039452,7]
[314125776,1708008657099,-524.35253935,0.00039452,7]
[314125777,1708008657109,-500.0,0.00039452,7]
[314125778,1708008657118,-500.0,0.00039452,7]
[314125779,1708008657127,-14520.0,0.00039463,7]
[314125780,1708008657136,-150.0,0.0003947,2]
[314125781,1708008657146,-150.0,0.00039478,2]
[314125782,1708008657156,-2834.0,0.00039494,2]
[314125783,1708008657165,-953.0,0.00039494,2]
[314125784,1708008657175,-841.0,0.00039494,2]
[314125785,1708008657184,-905.162,0.00039494,2]
[314125786,1708008657194,-1231.0,0.00039494,2]
[314125787,1708008657206,-1254.0,0.00039494,2]
[314125788,1708008657215,-1947.0,0.00039494,2]
[314125789,1708008657224,-593.654,0.00039494,2]
[314125790,1708008657234,-216.0,0.00039494,2]
[314125791,1708008657243,-616.546,0.00039494,2]
[314125792,1708008657253,-426.0,0.00039494,2]
[314125793,1708008657262,-238.293,0.00039494,2]
[314125794,1708008657271,-1010.149,0.00039494,2]
[314125795,1708008657282,-343.0,0.00039494,2]
[314125796,1708008657292,-541.202,0.00039494,2]
[314125797,1708008657301,-321.0,0.00039494,2]
[314125798,1708008657310,-151.641,0.00039494,2]
[314125799,1708008657319,-158.219,0.00039494,2]
[314125800,1708008657329,-454.0,0.00039494,2]
[314125801,1708008657338,-200.0,0.00039494,2]
[314125802,1708008657348,-3322.656,0.00039494,2]
[314125803,1708008657357,-7415.0,0.00039494,2]
[314125804,1708008657368,-150.24,0.00039494,2]
[314125805,1708008657378,-2511.656,0.00039494,2]
[314125806,1708008657388,-8162.0,0.00039494,2]
[314125807,1708008657398,-19841.0,0.00039494,2]
[314125808,1708008657407,-2926.0,0.00039494,2]
[314125809,1708008657416,-1642.439,0.00039494,2]
[314125810,1708008657426,-2289.0,0.00039494,2]
[314125811,1708008657436,-151.0,0.00039494,2]
[314125812,1708008657446,-150.191,0.00039494,2]
[314125813,1708008657456,-1037.0,0.00039494,2]
[314125814,1708008657465,-152.011,0.00039494,2]
[314125815,1708008657475,-150.0,0.00039494,2]
[314125816,1708008657485,-150.0,0.000395,2]
[314125817,1708008657494,-150.0,0.00039509,2]
[314125818,1708008657504,-150.0,0.00039538,2]
[314125819,1708008657513,-150.0,0.00039552,2]
[314125820,1708008657523,-150.0,0.00039575,2]
[314125821,1708008657533,-153.0,0.00039585,7]
[314125822,1708008657542,-10776.47,0.0003959,7]
[314125823,1708008657552,-10776.47,0.0003959,7]
[314125824,1708008657562,-53439.51,0.000396,7]
[314125825,1708008657571,-32848.72,0.000396,7]
[314125826,1708008657581,-151.0,0.000396,30]
[314125827,1708008657591,-500.0,0.00039621,7]
[314125828,1708008657601,-1978.81,0.0003963,2]
[314125829,1708008657611,-150.0,0.00039678,2]
[314125830,1708008657621,-7102.4075215,0.00039699,2]
[314125831,1708008657630,-3631.318863,0.00039699,2]
[314125832,1708008657639,-151.0,0.00039699,7]
[314125833,1708008657649,-151.0,0.00039699,7]
[314125834,1708008657658,-151.0,0.00039699,7]
[314125835,1708008657668,-151.0,0.00039699,7]
[314125836,1708008657677,-151.0,0.00039699,7]
[314125837,1708008657687,-78215.2984695,0.00039699,2]
[314125838,1708008657697,-17711.83543586,0.000397,20]
[314125839,1708008657706,-30000.0,0.000397,5]
[314125840,1708008657718,-1000.0,0.000397,2]
[314125841,1708008657727,-151.0,0.000397,7]
[314125842,1708008657738,-373.273337,0.000397,2]
[314125843,1708008657747,-373.273337,0.000397,2]
[314125844,1708008657757,-151.0,0.000397,7]
[314125845,1708008657767,-283.129209,0.000397,7]
[314125846,1708008657776,-299.99999801,0.000397,2]
[314125847,1708008657786,-1011.703502,0.000397,7]
[314125848,1708008657795,-1011.703502,0.000397,7]
[314125849,1708008657804,-227.5546,0.000397,7]
[314125850,1708008657815,-227.5546,0.000397,7]
[314125851,1708008657824,-151.0,0.000397,7]
[314125852,1708008657834,-151.0,0.000397,7]
[314125853,1708008657843,-151.0,0.000397,7]
[314125854,1708008657853,-151.0,0.000397,7]
[314125855,1708008657862,-243.391961,0.000397,7]
[314125856,1708008657871,-243.391961,0.000397,7]
[314125857,1708008657881,-504.86211584,0.000397,4]
[314125858,1708008657890,-5908.12746108,0.00039716,13]
[314125859,1708008657900,-648.21296606,0.00039726,7]
[314125860,1708008657909,-539.00859521,0.00039726,7]
[314125861,1708008657919,-500.0,0.00039726,7]
[314125862,1708008657928,-542.09300149,0.00039726,7]
[314125863,1708008657938,-500.0,0.00039726,7]
[314125864,1708008657949,-500.0,0.00039726,7]
[314125865,1708008657958,-500.0,0.00039726,7]
[314125866,1708008657967,-500.0,0.00039726,7]
[314125867,1708008657977,-502.8241964,0.00039726,7]
[314125868,1708008657987,-262.41245731,0.00039726,7]
[314125869,1708008657997,-500.0,0.00039726,7]
[314125870,1708008658006,-536.01433717,0.00039726,7]
[314125871,1708008658019,-151.0,0.00039726,7]
[314125872,1708008658028,-151.0,0.00039726,7]
[314125873,1708008658038,-500.0,0.00039726,7]
[314125874,1708008658049,-500.0,0.00039726,7]
[314125875,1708008658059,-500.0,0.00039726,7]
[314125876,1708008658069,-500.0,0.00039726,7]
[314125877,1708008658080,-500.0,0.00039726,7]
[314125878,1708008658090,-500.0,0.00039726,7]
[314125879,1708008658182,-178.2,0.00039726,7]
[314125880,1708008658193,-178.2,0.00039726,7]
[314125881,1708008658206,-500.0,0.00039726,7]
[314125882,1708008658216,-535.58096977,0.00039726,7]
[314125883,1708008658225,-500.0,0.00039726,7]
[314125884,1708008658235,-500.0,0.00039726,7]
[314125885,1708008658246,-520.94438638,0.00039726,7]
[314125886,1708008658256,-530.92753383,0.00039726,7]
[314125887,1708008658265,-500.0,0.00039726,7]
[314125888,1708008658275,-500.0,0.00039726,7]
[314125889,1708008658286,-500.0,0.00039726,7]
[314125890,1708008658296,-500.0,0.00039726,7]
[314125891,1708008658306,-500.0,0.00039726,7]
[314125892,1708008658316,-500.0,0.00039726,7]
[314125893,1708008658325,-500.0,0.00039726,7]
[314125894,1708008658336,-555.63831004,0.00039726,7]
[314125895,1708008658347,-500.0,0.00039726,7]
[314125896,1708008658357,-500.0,0.00039726,7]
[314125897,1708008658368,-500.0,0.00039726,7]
[314125898,1708008658378,-530.86291692,0.00039726,7]
[314125899,1708008658388,-500.0,0.00039726,7]
[314125900,1708008658398,-500.0,0.00039726,7]
[314125901,1708008658409,-500.0,0.00039726,7]
[314125902,1708008658421,-500.0,0.00039726,7]
[314125903,1708008658431,-500.0,0.00039726,7]
[314125904,1708008658441,-500.0,0.00039726,7]
[314125905,1708008658453,-500.0,0.00039726,7]
[314125906,1708008658464,-529.65992867,0.00039726,7]
[314125907,1708008658474,-500.0,0.00039726,7]
[314125908,1708008658484,-500.0,0.00039726,7]
[314125909,1708008658494,-500.0,0.00039726,7]
[314125910,1708008658504,-161.10672897,0.00039726,7]
[314125911,1708008658514,-500.0,0.00039726,7]
[314125912,1708008658524,-500.0,0.00039726,7]
[314125913,1708008658533,-500.0,0.00039726,7]
[314125914,1708008658543,-500.0,0.00039726,7]
[314125915,1708008658553,-500.0,0.00039726,7]
[314125916,1708008658563,-1000.0,0.00039726,7]
[314125917,1708008658574,-1408.56,0.00039726,7]
[314125918,1708008658584,-500.0,0.00039726,7]
[314125919,1708008658594,-500.0,0.00039726,7]
[314125920,1708008658603,-535.71107906,0.00039726,7]
[314125921,1708008658613,-500.0,0.00039726,7]
[314125922,1708008658622,-500.0,0.00039726,2]
[314125923,1708008658632,-500.0,0.00039726,7]
[314125924,1708008658643,-500.0,0.00039726,7]
[314125925,1708008658652,-500.0,0.00039726,7]
[314125926,1708008658662,-500.0,0.00039726,7]
[314125927,1708008658672,-500.0,0.00039726,7]
[314125928,1708008658682,-500.0,0.00039726,7]
[314125929,1708008658691,-500.0,0.00039726,7]
[314125930,1708008658702,-500.0,0.00039726,7]
[314125931,1708008658713,-500.0,0.00039726,7]
[314125932,1708008658722,-500.0,0.00039726,7]
[314125933,1708008658732,-1000.0,0.00039726,7]
[314125934,1708008658742,-500.0,0.00039726,7]
[314125935,1708008658752,-500.0,0.00039726,7]
[314125936,1708008658762,-500.0,0.00039726,7]
[314125937,1708008658773,-500.0,0.00039726,7]
[314125938,1708008658783,-500.0,0.00039726,7]
[314125939,1708008658793,-500.0,0.00039726,7]
[314125940,1708008658806,-500.0,0.00039726,7]
[314125941,1708008658816,-500.0,0.00039726,7]
[314125942,1708008658826,-761.77,0.00039726,7]
[314125943,1708008658835,-500.0,0.00039726,7]
[314125944,1708008658845,-587.40959512,0.00039726,7]
[314125945,1708008658855,-500.0,0.00039726,7]
[314125946,1708008658865,-510.98758277,0.00039726,7]
[314125947,1708008658875,-500.0,0.00039726,7]
[314125948,1708008658886,-500.0,0.00039726,7]
[314125949,1708008658896,-500.0,0.00039726,7]
[314125950,1708008658906,-500.0,0.00039726,7]
[314125951,1708008658916,-648.05617928,0.00039726,7]
[314125952,1708008658926,-500.0,0.00039726,7]
[314125953,1708008658935,-500.0,0.00039726,7]
[314125954,1708008658945,-500.0,0.00039726,7]
[314125955,1708008658956,-508.70345404,0.00039726,7]
[314125956,1708008658966,-302.03527271,0.00039726,7]
[314125957,1708008658976,-500.0,0.00039726,7]
[314125958,1708008658986,-500.0,0.00039726,7]
[314125959,1708008658996,-500.0,0.00039726,7]
[314125960,1708008659006,-500.0,0.00039726,7]
[314125961,1708008659016,-571.62106035,0.00039726,7]
[314125962,1708008659025,-511.88163367,0.00039726,7]
[314125963,1708008659035,-500.0,0.00039726,7]
[314125964,1708008659045,-525.16268876,0.00039726,7]
[314125965,1708008659054,-500.0,0.00039726,7]
[314125966,1708008659063,-500.0,0.00039726,7]
[314125967,1708008659073,-500.0,0.00039726,7]
[314125968,1708008659083,-170.29775087,0.00039726,7]
[314125969,1708008659092,-154.96568356,0.00039726,7]
[314125970,1708008659101,-500.0,0.00039726,7]
[314125971,1708008659111,-500.0,0.00039726,7]
[314125972,1708008659120,-500.0,0.00039726,7]
[314125973,1708008659130,-500.0,0.00039726,7]
[314125974,1708008659140,-500.0,0.00039726,7]
[314125975,1708008659149,-500.0,0.00039726,7]
[314125976,1708008659159,-500.0,0.00039726,7]
[314125977,1708008659169,-153.39098848,0.00039726,7]
[314125978,1708008659178,-500.0,0.00039726,7]
[314125979,1708008659189,-500.0,0.00039726,7]
[314125980,1708008659200,-500.0,0.00039726,7]
[314125981,1708008659210,-500.0,0.00039726,7]
[314125982,1708008659220,-500.0,0.00039726,7]
[314125983,1708008659230,-500.0,0.00039726,7]
[314125984,1708008659241,-500.0,0.00039726,7]
[314125985,1708008659250,-500.0,0.00039726,7]
[314125986,1708008659260,-511.27272586,0.00039726,7]
[314125987,1708008659270,-512.28992833,0.00039726,7]
[314125988,1708008659280,-500.0,0.00039726,7]
[314125989,1708008659290,-500.0,0.00039726,7]
[314125990,1708008659300,-500.0,0.00039726,7]
[314125991,1708008659310,-500.0,0.00039726,7]
[314125992,1708008659320,-500.0,0.00039726,7]
[314125993,1708008659331,-500.0,0.00039726,7]
[314125994,1708008659342,-500.0,0.00039726,2]
[314125995,1708008659352,-500.0,0.00039726,7]
[314125996,1708008659362,-1000.0,0.00039726,120]
[314125997,1708008659372,-532.22106102,0.00039726,7]
[314125998,1708008659456,-500.0,0.00039726,7]
[314125999,1708008659467,-500.0,0.00039726,7]
[314126000,1708008659477,-546.48244125,0.00039726,7]
[314126001,1708008659487,-151.0,0.00039726,7]
[314126002,1708008659496,-500.0,0.00039726,7]
[314126003,1708008659506,-500.0,0.00039726,7]
[314126004,1708008659515,-500.0,0.00039726,7]
[314126005,1708008659525,-500.0,0.00039726,2]
[314126006,1708008659535,-500.0,0.00039726,7]
[314126007,1708008659545,-500.0,0.00039726,7]
[314126008,1708008659555,-500.0,0.00039726,7]
[314126009,1708008659564,-500.0,0.00039726,7]
[314126010,1708008659574,-500.0,0.00039726,7]
[314126011,1708008659584,-540.99,0.00039726,7]
[314126012,1708008659594,-500.0,0.00039726,7]
[314126013,1708008659604,-500.0,0.00039726,7]
[314126014,1708008659615,-500.0,0.00039726,7]
[314126015,1708008659625,-500.0,0.00039726,7]
[314126016,1708008659634,-500.0,0.00039726,7]
[314126017,1708008659644,-150.0,0.00039726,7]
[314126018,1708008659653,-500.0,0.00039726,7]
[314126019,1708008659663,-500.0,0.00039726,7]
[314126020,1708008659672,-500.0,0.00039726,7]
[314126021,1708008659682,-500.0,0.00039726,7]
[314126022,1708008659690,-314.88671762,0.00039726,7]
[314126023,1708008659701,-500.0,0.00039726,7]
[314126024,1708008659710,-500.0,0.00039726,7]
[314126025,1708008659719,-500.0,0.00039726,5]
[314126026,1708008659729,-500.0,0.00039726,7]
[314126027,1708008659738,-500.0,0.00039726,7]
[314126028,1708008659748,-500.0,0.00039726,7]
[314126029,1708008659757,-500.0,0.00039726,7]
[314126030,1708008659766,-500.0,0.00039726,7]
[314126031,1708008659776,-500.0,0.00039726,7]
[314126032,1708008659786,-161.848028,0.00039726,7]
[314126033,1708008659796,-500.0,0.00039726,7]
[314126034,1708008659806,-500.0,0.00039726,7]
[314126035,1708008659815,-500.0,0.00039726,7]
[314126036,1708008659825,-161.848028,0.00039726,7]
[314126037,1708008659835,-507.25310414,0.00039726,7]
[314126038,1708008659844,-500.0,0.00039726,7]
[314126039,1708008659854,-151.0,0.00039726,7]
[314126040,1708008659863,-500.0,0.00039726,7]
[314126041,1708008659873,-151.0,0.00039726,7]
[314126042,1708008659883,-500.0,0.00039726,7]
[314126043,1708008659893,-500.0,0.00039726,7]
[314126044,1708008659902,-1245.71,0.00039726,7]
[314126045,1708008659912,-400.66128136,0.00039726,7]
[314126046,1708008659922,-500.0,0.00039726,7]
[314126047,1708008659932,-500.0,0.00039726,7]
[314126048,1708008659941,-500.0,0.00039726,7]
[314126049,1708008659953,-500.0,0.00039726,7]
[314126050,1708008659963,-500.0,0.00039726,7]
[314126051,1708008659973,-500.0,0.00039726,2]
[314126052,1708008659982,-500.0,0.00039726,7]
[314126053,1708008659999,-500.0,0.00039726,7]
[314126054,1708008660021,-500.0,0.00039726,7]
[314126055,1708008660040,-500.0,0.00039726,7]
[314126056,1708008660062,-500.0,0.00039726,7]
[314126057,1708008660082,-500.0,0.00039726,7]
[314126058,1708008660100,-500.0,0.00039726,7]
[314126059,1708008660122,-500.0,0.00039726,7]
[314126060,1708008660140,-500.0,0.00039726,7]
[314126061,1708008660159,-500.0,0.00039726,7]
[314126062,1708008660176,-299.96355221,0.00039726,7]
[314126063,1708008660196,-313.22,0.00039726,7]
[314126064,1708008660219,-500.0,0.00039726,7]
[314126065,1708008660234,-500.0,0.00039726,7]
[314126066,1708008660249,-500.0,0.00039726,7]
[314126067,1708008660265,-357.11,0.00039726,7]
[314126068,1708008660280,-515.76233783,0.00039726,7]
[314126069,1708008660294,-371.50445755,0.00039726,7]
[314126070,1708008660310,-500.0,0.00039726,7]
[314126071,1708008660328,-519.68785061,0.00039726,7]
[314126072,1708008660343,-500.0,0.00039726,7]
[314126073,1708008660359,-587.91,0.00039726,7]
[314126074,1708008660375,-500.0,0.00039726,7]
[314126075,1708008660390,-500.0,0.00039726,7]
[314126076,1708008660405,-500.0,0.00039726,7]
[314126077,1708008660420,-623.21219143,0.00039726,7]
[314126078,1708008660436,-515.84,0.00039726,7]
[314126079,1708008660451,-500.0,0.00039726,7]
[314126080,1708008660469,-541.25,0.00039726,7]
[314126081,1708008660483,-522.28977275,0.00039726,7]
[314126082,1708008660506,-500.43227911,0.00039726,7]
[314126083,1708008660521,-500.0,0.00039726,7]
[314126084,1708008660537,-385.28008968,0.00039726,7]
[314126085,1708008660555,-500.0,0.00039726,7]
[314126086,1708008660571,-500.0,0.00039726,7]
[314126087,1708008660589,-252.75183983,0.00039726,7]
[314126088,1708008660604,-500.0,0.00039726,7]
[314126089,1708008660619,-548.10448524,0.00039726,7]
[314126090,1708008660635,-500.0,0.00039726,7]
[314126091,1708008660650,-529.32076164,0.00039726,7]
[314126092,1708008660665,-500.0,0.00039726,7]
[314126093,1708008660680,-500.0,0.00039726,7]
[314126094,1708008660696,-500.0,0.00039726,7]
[314126095,1708008660712,-500.0,0.00039726,7]
[314126096,1708008660727,-760.56,0.00039726,7]
[314126097,1708008660742,-500.0,0.00039726,7]
[314126098,1708008660757,-183.08557537,0.00039726,7]
[314126099,1708008660771,-463.06402722,0.00039726,7]
[314126100,1708008660785,-500.0,0.00039726,7]
[314126101,1708008660800,-500.0,0.00039726,7]